lending/lending_fUSD_20240411
["ID","MTS","AMOUNT","RATE_DAILY","PERIOD"]
[322145411,1712848287679,-338.173423,0.00033972,7]
[322145412,1712848287693,-338.877614,0.00033972,7]
[322145413,1712848287705,-500.0,0.00033972,7]
[322145414,1712848287717,-500.0,0.00033972,7]
[322145415,1712848287728,-1109.99,0.00033972,7]
[322145416,1712848287738,-500.0,0.00033972,7]
[322145417,1712848287749,-353.885644,0.00033972,7]
[322145418,1712848287761,-730.15,0.00033972,7]
[322145419,1712848287771,-500.0,0.00033972,7]
[322145420,1712848287783,-500.0,0.00033972,7]
[322145421,1712848287793,-338.173431,0.00033972,7]
[322145422,1712848287804,-500.0,0.00033972,7]
[322145423,1712848287815,-500.0,0.00033972,7]
[322145424,1712848287828,-338.877619,0.00033972,7]
[322145425,1712848287840,-575.58,0.00033972,7]
[322145426,1712848287852,-1120.75,0.00033972,7]
[322145427,1712848287863,-500.0,0.00033972,7]
[322145428,1712848287873,-500.0,0.00033972,7]
[322145429,1712848287884,-500.0,0.00033972,7]
[322145430,1712848287894,-500.0,0.00033972,7]
[322145431,1712848287904,-617.32907077,0.00033972,7]
[322145432,1712848287915,-941.64,0.00033972,7]
[322145433,1712848287926,-500.0,0.00033972,7]
[322145434,1712848287937,-627.07,0.00033972,7]
[322145435,1712848287948,-500.0,0.00033972,7]
[322145436,1712848287958,-942.95,0.00033972,7]
[322145437,1712848287969,-500.0,0.00033972,7]
[322145438,1712848287979,-353.885646,0.00033972,7]
[322145439,1712848287990,-2104.24,0.00033972,7]
[322145440,1712848288001,-500.0,0.00033972,7]
[322145441,1712848288012,-579.39,0.00033972,7]
[322145442,1712848288022,-1742.06,0.00033972,7]
[322145443,1712848288034,-1514.16,0.00033972,7]
[322145444,1712848288044,-500.0,0.00033972,7]
[322145445,1712848288054,-476.60060229,0.00033972,7]
[322145446,1712848288065,-500.0,0.00033972,7]
[322145447,1712848288075,-584.84301433,0.00033972,7]
[322145448,1712848288085,-500.0,0.00033972,7]
[322145449,1712848288095,-500.0,0.00033972,7]
[322145450,1712848288106,-500.0,0.00033972,7]
[322145451,1712848288115,-500.0,0.00033972,7]
[322145452,1712848288129,-589.93,0.00033972,7]
[322145453,1712848288140,-1822.22,0.00033972,7]
[322145454,1712848288149,-500.0,0.00033972,7]
[322145455,1712848288159,-457.44151257,0.00033972,7]
[322145456,1712848288171,-320.681158,0.00033972,7]
[322145457,1712848288181,-1359.59,0.00033972,7]
[322145458,1712848288190,-533.95,0.00033972,7]
[322145459,1712848288202,-500.0,0.00033972,7]
[322145460,1712848288211,-1569.71,0.00033972,7]
[322145461,1712848288223,-500.0,0.00033972,7]
[322145462,1712848288233,-500.0,0.00033972,7]
[322145463,1712848288243,-500.0,0.00033972,7]
[322145464,1712848288253,-500.0,0.00033972,2]
[322145465,1712848288262,-845.56,0.00033972,7]
[322145466,1712848288272,-500.0,0.00033972,7]
[322145467,1712848288282,-500.0,0.00033972,7]
[322145468,1712848288292,-500.0,0.00033972,7]
[322145469,1712848288302,-500.0,0.00033972,7]
[322145470,1712848288312,-500.0,0.00033972,7]
[322145471,1712848288321,-500.0,0.00033972,7]
[322145472,1712848288331,-500.0,0.00033972,7]
[322145473,1712848288341,-500.0,0.00033972,7]
[322145474,1712848288350,-572.57,0.00033972,7]
[322145475,1712848288361,-596.39,0.00033972,7]
[322145476,1712848288371,-4675.86,0.00033972,7]
[322145477,1712848288380,-320.681153,0.00033972,7]
[322145478,1712848288390,-1993.52,0.00033972,7]
[322145479,1712848288400,-854.07,0.00033972,7]
[322145480,1712848288410,-500.0,0.00033972,7]
[322145481,1712848288421,-500.0,0.00033972,7]
[322145482,1712848288431,-1356.68,0.00033972,7]
[322145483,1712848288441,-500.0,0.00033972,7]
[322145484,1712848288451,-501.70867098,0.00033972,7]
[322145485,1712848288460,-201.38172758,0.00033972,7]
[322145486,1712848288470,-1786.68,0.00033972,7]
[322145487,1712848288480,-509.93,0.00033972,7]
[322145488,1712848288489,-625.05,0.00033972,7]
[322145489,1712848288499,-500.0,0.00033972,7]
[322145490,1712848288508,-500.0,0.00033972,7]
[322145491,1712848288518,-500.0,0.00033972,7]
[322145492,1712848288528,-500.0,0.00033972,7]
[322145493,1712848288538,-729.2,0.00033972,7]
[322145494,1712848288548,-672.56,0.00033972,7]
[322145495,1712848288558,-500.0,0.00033972,7]
[322145496,1712848288568,-500.0,0.00033972,7]
[322145497,1712848288578,-500.0,0.00033972,7]
[322145498,1712848288587,-1482.83,0.00033972,7]
[322145499,1712848288597,-324.70516731,0.00033972,7]
[322145500,1712848288611,-256.69227742,0.00033972,7]
[322145501,1712848288621,-1008.59,0.00033972,7]
[322145502,1712848288631,-500.0,0.00033972,7]
[322145503,1712848288640,-1969.2,0.00033972,7]
[322145504,1712848288650,-592.40311024,0.00033972,7]
[322145505,1712848288661,-956.94,0.00033972,7]
[322145506,1712848288673,-500.0,0.00033972,7]
[322145507,1712848288682,-951.94,0.00033972,7]
[322145508,1712848288692,-523.27495647,0.00033972,7]
[322145509,1712848288702,-1485.78,0.00033972,7]
[322145510,1712848288711,-500.0,0.00033972,7]
[322145511,1712848288721,-500.0,0.00033972,7]
[322145512,1712848288731,-740.41,0.00033972,7]
[322145513,1712848288741,-500.0,0.00033972,7]
[322145514,1712848288750,-923.35,0.00033972,7]
[322145515,1712848288760,-500.0,0.00033972,7]
[322145516,1712848288770,-500.0,0.00033972,7]
[322145517,1712848288779,-547.77,0.00033972,7]
[322145518,1712848288791,-614.061326,0.00033972,7]
[322145519,1712848288801,-500.0,0.00033972,7]
[322145520,1712848288811,-500.0,0.00033972,7]
[322145521,1712848288821,-3065.38,0.00033972,7]
[322145522,1712848288832,-500.0,0.00033972,7]
[322145523,1712848288842,-614.061327,0.00033972,7]
[322145524,1712848288853,-500.0,0.00033972,7]
[322145525,1712848288864,-500.0,0.00033972,7]
[322145526,1712848288875,-890.15,0.00033972,7]
[322145527,1712848288885,-500.0,0.00033972,7]
[322145528,1712848288894,-500.0,0.00033972,7]
[322145529,1712848288904,-372.76748263,0.00033972,7]
[322145530,1712848288914,-151.0,0.00033972,7]
[322145531,1712848288923,-500.0,0.00033972,7]
[322145532,1712848288933,-1162.53,0.00033972,7]
[322145533,1712848288943,-1671.2,0.00033972,7]
[322145534,1712848288953,-1912.2,0.00033972,7]
[322145535,1712848288962,-685.11,0.00033972,7]
[322145536,1712848288972,-682.15,0.00033972,7]
[322145537,1712848288981,-500.0,0.00033972,7]
[322145538,1712848288991,-608.74,0.00033972,7]
[322145539,1712848289000,-965.85,0.00033972,7]
[322145540,1712848289011,-1852.99,0.00033972,7]
[322145541,1712848289021,-500.0,0.00033972,7]
[322145542,1712848289030,-500.0,0.00033972,7]
[322145543,1712848289040,-519.23,0.00033972,7]
[322145544,1712848289049,-977.18,0.00033972,7]
[322145545,1712848289059,-500.0,0.00033972,7]
[322145546,1712848289069,-500.0,0.00033972,7]
[322145547,1712848289079,-565.7,0.00033972,7]
[322145548,1712848289088,-2716.5,0.00033972,7]
[322145549,1712848289098,-500.0,0.00033972,7]
[322145550,1712848289109,-500.0,0.00033972,7]
[322145551,1712848289122,-500.0,0.00033972,7]
[322145552,1712848289132,-500.0,0.00033972,7]
[322145553,1712848289141,-500.0,0.00033972,7]
[322145554,1712848289151,-500.0,0.00033972,7]
[322145555,1712848289161,-1101.15,0.00033972,7]
[322145556,1712848289171,-500.0,0.00033972,7]
[322145557,1712848289181,-500.0,0.00033972,7]
[322145558,1712848289191,-254.09401597,0.00033972,7]
[322145559,1712848289202,-1930.2,0.00033972,7]
[322145560,1712848289211,-500.0,0.00033972,7]
[322145561,1712848289423,-500.0,0.00033972,7]
[322145562,1712848289434,-500.0,0.00033972,7]
[322145563,1712848289443,-500.0,0.00033972,7]
[322145564,1712848289453,-500.0,0.00033972,7]
[322145565,1712848289462,-500.0,0.00033972,7]
[322145566,1712848289471,-500.0,0.00033972,7]
[322145567,1712848289480,-873.05,0.00033972,7]
[322145568,1712848289489,-500.0,0.00033972,7]
[322145569,1712848289498,-500.0,0.00033972,7]
[322145570,1712848289507,-510.31,0.00033972,7]
[322145571,1712848289516,-500.0,0.00033972,7]
[322145572,1712848289526,-500.0,0.00033972,7]
[322145573,1712848289535,-500.0,0.00033972,2]
[322145574,1712848289544,-1206.16,0.00033972,7]
[322145575,1712848289554,-769.09,0.00033972,7]
[322145576,1712848289564,-500.0,0.00033972,7]
[322145577,1712848289574,-500.0,0.00033972,7]
[322145578,1712848289583,-749.46,0.00033972,7]
[322145579,1712848289593,-2635.43,0.00033972,7]
[322145580,1712848289607,-500.0,0.00033972,7]
[322145581,1712848289617,-566.66,0.00033972,7]
[322145582,1712848289627,-515.02,0.00033972,7]
[322145583,1712848289637,-500.0,0.00033972,7]
[322145584,1712848289646,-585.38,0.00033972,7]
[322145585,1712848289657,-580.55,0.00033972,7]
[322145586,1712848289668,-500.0,0.00033972,7]
[322145587,1712848289678,-1954.04,0.00033972,7]
[322145588,1712848289688,-500.0,0.00033972,7]
[322145589,1712848289697,-769.14,0.00033972,7]
[322145590,1712848289706,-1944.92,0.00033972,7]
[322145591,1712848289717,-500.0,0.00033972,7]
[322145592,1712848289726,-1383.67,0.00033972,7]
[322145593,1712848289735,-500.0,0.00033972,7]
[322145594,1712848289745,-500.0,0.00033972,7]
[322145595,1712848289754,-724.86,0.00033972,7]
[322145596,1712848289763,-500.0,0.00033972,7]
[322145597,1712848289773,-546.3,0.00033972,7]
[322145598,1712848289782,-500.0,0.00033972,7]
[322145599,1712848289792,-500.0,0.00033972,7]
[322145600,1712848289804,-1253.52,0.00033972,7]
[322145601,1712848289814,-500.0,0.00033972,7]
[322145602,1712848289823,-536.7,0.00033972,7]
[322145603,1712848289833,-669.02,0.00033972,7]
[322145604,1712848289842,-500.0,0.00033972,7]
[322145605,1712848289855,-795.3,0.00033972,7]
[322145606,1712848289866,-500.0,0.00033972,7]
[322145607,1712848289876,-500.0,0.00033972,7]
[322145608,1712848289885,-3140.81,0.00033972,7]
[322145609,1712848289895,-500.0,0.00033972,7]
[322145610,1712848289904,-500.0,0.00033972,7]
[322145611,1712848289914,-1145.09,0.00033972,7]
[322145612,1712848289923,-500.0,0.00033972,7]
[322145613,1712848289933,-210.03,0.00033972,7]
[322145614,1712848289946,-500.0,0.00033972,7]
[322145615,1712848289956,-500.0,0.00033972,7]
[322145616,1712848289967,-300.0,0.00033972,7]
[322145617,1712848289978,-500.0,0.00033972,7]
[322145618,1712848289988,-500.0,0.00033972,7]
[322145619,1712848289998,-1522.41,0.00033972,7]
[322145620,1712848290008,-1680.65,0.00033972,7]
[322145621,1712848290019,-709.81,0.00033972,7]
[322145622,1712848290030,-1440.36,0.00033972,7]
[322145623,1712848290040,-2702.16,0.00033972,7]
[322145624,1712848290049,-1486.93,0.00033972,7]
[322145625,1712848290060,-1792.03,0.00033972,7]
[322145626,1712848290070,-500.0,0.00033972,7]
[322145627,1712848290079,-2974.4,0.00033972,7]
[322145628,1712848290089,-500.0,0.00033972,7]
[322145629,1712848290099,-500.0,0.00033972,7]
[322145630,1712848290111,-500.0,0.00033972,7]
[322145631,1712848290121,-500.0,0.00033972,7]
[322145632,1712848290134,-1355.07,0.00033972,7]
[322145633,1712848290144,-6272.22,0.00033972,7]
[322145634,1712848290154,-839.27,0.00033972,7]
[322145635,1712848290165,-500.0,0.00033972,7]
[322145636,1712848290174,-500.0,0.00033972,7]
[322145637,1712848290184,-500.0,0.00033972,7]
[322145638,1712848290194,-500.0,0.00033972,2]
[322145639,1712848290206,-500.0,0.00033972,7]
[322145640,1712848290216,-500.0,0.00033972,7]
[322145641,1712848290226,-500.0,0.00033972,7]
[322145642,1712848290235,-588.34,0.00033972,7]
[322145643,1712848290245,-500.0,0.00033972,7]
[322145644,1712848290256,-500.0,0.00033972,7]
[322145645,1712848290266,-1284.04,0.00033972,7]
[322145646,1712848290276,-4649.4,0.00033972,7]
[322145647,1712848290286,-500.0,0.00033972,7]
[322145648,1712848290296,-500.0,0.00033972,7]
[322145649,1712848290307,-500.0,0.00033972,7]
[322145650,1712848290319,-1433.72,0.00033972,7]
[322145651,1712848290330,-500.0,0.00033972,7]
[322145652,1712848290342,-740.66,0.00033972,7]
[322145653,1712848290356,-500.0,0.00033972,7]
[322145654,1712848290367,-500.0,0.00033972,7]
[322145655,1712848290378,-551.66,0.00033972,7]
[322145656,1712848290389,-1412.78,0.00033972,7]
[322145657,1712848290400,-4896.68,0.00033972,7]
[322145658,1712848290411,-500.0,0.00033972,7]
[322145659,1712848290422,-500.0,0.00033972,7]
[322145660,1712848290433,-500.0,0.00033972,7]
[322145661,1712848290444,-2627.94,0.00033972,7]
[322145662,1712848290457,-500.0,0.00033972,7]
[322145663,1712848290466,-500.0,0.00033972,7]
[322145664,1712848290478,-1233.67,0.00033972,7]
[322145665,1712848290490,-6982.06,0.00033972,7]
[322145666,1712848290501,-390.76195846,0.00033972,7]
[322145667,1712848290511,-500.0,0.00033972,7]
[322145668,1712848290522,-653.75,0.00033972,7]
[322145669,1712848290533,-500.0,0.00033972,7]
[322145670,1712848290543,-169.064216,0.00033972,7]
[322145671,1712848290552,-40373.99,0.00033972,7]
[322145672,1712848290563,-1158.93,0.00033972,7]
[322145673,1712848290573,-500.0,0.00033972,7]
[322145674,1712848290583,-500.0,0.00033972,7]
[322145675,1712848290596,-682.16,0.00033972,7]
[322145676,1712848290611,-543.39808393,0.00033972,7]
[322145677,1712848290622,-502.03,0.00033972,7]
[322145678,1712848290633,-500.0,0.00033972,7]
[322145679,1712848290642,-3471.46,0.00033972,7]
[322145680,1712848290652,-500.0,0.00033972,7]
[322145681,1712848290666,-169.064225,0.00033972,7]
[322145682,1712848290677,-11250.63,0.00033972,7]
[322145683,1712848290686,-2655.3,0.00033972,7]
[322145684,1712848290697,-500.0,0.00033972,7]
[322145685,1712848290708,-500.0,0.00033972,7]
[322145686,1712848290719,-500.0,0.00033972,7]
[322145687,1712848290730,-1317.26,0.00033972,7]
[322145688,1712848290740,-545.86,0.00033972,7]
[322145689,1712848290751,-1692.79,0.00033972,7]
[322145690,1712848290760,-500.0,0.00033972,7]
[322145691,1712848290770,-3523.35,0.00033972,7]
[322145692,1712848290781,-1672.24,0.00033972,7]
[322145693,1712848290791,-500.0,0.00033972,7]
[322145694,1712848290801,-710.09,0.00033972,7]
[322145695,1712848290810,-320.80136767,0.00033972,7]
[322145696,1712848292631,-285.5184421,0.00021898,2]
[322145697,1712848293190,-628.32999999,0.00021898,2]
[322145698,1712848293236,-13254.25155791,0.00021898,2]
[322145699,1712848293246,-1001.0642896,0.00032853,2]
[322145700,1712848293256,-500.0,0.00032876,2]
[322145701,1712848293265,-4152.4,0.00032876,2]
[322145702,1712848293274,-500.0,0.00032876,2]
[322145703,1712848293284,-500.0,0.00032876,2]
[322145704,1712848293294,-500.0,0.00032876,2]
[322145705,1712848293303,-224.91491427,0.00033371,22]
[322145706,1712848293313,-874.3605851,0.00033401,2]
[322145707,1712848293326,-500.0,0.00033424,7]
[322145708,1712848293337,-764.3549483,0.00033424,7]
[322145709,1712848293350,-1898.28198067,0.00033424,7]
[322145710,1712848293443,-1489.76307103,0.00033424,7]
[322145711,1712848293453,-500.0,0.00033424,7]
[322145712,1712848293462,-500.0,0.00033424,7]
[322145713,1712848293471,-500.0,0.00033424,7]
[322145714,1712848293480,-313.882761,0.00033424,7]
[322145715,1712848293490,-747.6568805,0.00033949,2]
[322145716,1712848293499,-513.27863233,0.00033972,7]
[322145717,1712848293508,-1783.02,0.00033972,7]
[322145718,1712848293517,-749.395887,0.00033972,2]
[322145719,1712848293526,-500.0,0.00033972,7]
[322145720,1712848293535,-2223.91,0.00033972,7]
[322145721,1712848293545,-500.0,0.00033972,7]
[322145722,1712848293554,-500.0,0.00033972,7]
[322145723,1712848293563,-500.0,0.00033972,7]
[322145724,1712848293573,-1458.66,0.00033972,7]
[322145725,1712848293582,-90.04033202,0.00033972,7]
[322145726,1712848293613,-409.95966798,0.00033972,7]
[322145727,1712848293622,-629.19,0.00033972,7]
[322145728,1712848293632,-279.37544973,0.00033972,7]
[322145729,1712848293645,-220.62455027,0.00033972,7]
[322145730,1712848293655,-518.03937542,0.00033972,7]
[322145731,1712848296398,2209.24532718,0.00021,2]
[322145739,1712848455261,550.0,0.00021,3]
[322145740,1712848602250,14931.86166925,0.0002089,2]
[322145742,1712848626084,155.0,0.00033493,30]
[322145744,1712848879471,171.64,0.00029409,120]
[322145791,1712849431777,-1062.27095016,0.00022899,2]
[322145792,1712849431787,-164.79009816,0.000229,2]
[322145793,1712849431797,-600.0,0.00023,3]
[322145794,1712849431807,-164.79009812,0.00024875,2]
[322145795,1712849431816,-3484.0,0.000249,2]
[322145796,1712849431826,-490.7952,0.000249,2]
[322145797,1712849431835,-150.0,0.00024998,2]
[322145798,1712849431845,-650.0,0.00025,3]
[322145799,1712849431855,-214.0,0.00025506,2]
[322145800,1712849431864,-354.0,0.00025506,2]
[322145801,1712849431873,-164.79009812,0.0002685,2]
[322145802,1712849431883,-700.0,0.00027,3]
[322145803,1712849431892,-150.99,0.00027,2]
[322145804,1712849431902,-499.99,0.00027,2]
[322145805,1712849431911,-7925.45,0.00027,2]
[322145806,1712849431920,-332.74,0.00027289,2]
[322145807,1712849431930,-175.32,0.00027397,2]
[322145808,1712849431939,-164.79009812,0.00028826,2]
[322145809,1712849431948,-4577.01,0.00028826,2]
[322145810,1712849431957,-7805.93,0.00028947,2]
[322145811,1712849431966,-150.0,0.00028948,2]
[322145812,1712849431975,-750.0,0.00029,3]
[322145813,1712849431984,-250.0,0.00029023,2]
[322145814,1712849431994,-179.56,0.00029094,2]
[322145815,1712849432004,-539.91,0.00029171,2]
[322145816,1712849432014,-250.0,0.00029207,2]
[322145817,1712849432023,-2209.24532718,0.00029409,2]
[322145818,1712849432032,-152.27,0.00029456,2]
[322145819,1712849432041,-1000.0,0.00029475,2]
[322145820,1712849432051,-2649.32,0.00029503,2]
[322145821,1712849432060,-332.74,0.00029553,2]
[322145822,1712849432069,-367.151086,0.00029998,2]
[322145823,1712849432079,-5669.53624761,0.00030099,2]
[322145824,1712849432089,-5000.0,0.00030136,4]
[322145825,1712849432099,-512.0,0.00030137,2]
[322145826,1712849432108,-548.0,0.00030137,2]
[322145827,1712849432118,-178.01153981,0.00030343,7]
[322145828,1712849432127,-570.57690158,0.00030343,4]
[322145829,1712849432136,-166.9,0.00030413,2]
[322145830,1712849432146,-150.0,0.00030544,2]
[322145831,1712849432155,-34677.288,0.00030646,2]
[322145832,1712849432165,-164.79009812,0.00030801,2]
[322145833,1712849432175,-490.78981057,0.00031,4]
[322145834,1712849432183,-800.0,0.00031,3]
[322145836,1712849432193,-512.0,0.00031507,2]
[322145837,1712849432202,-548.0,0.00031507,2]
[322145838,1712849432212,-2585.52001065,0.00031629,2]
[322145839,1712849432221,-321.68566179,0.0003163,2]
[322145840,1712849432230,-454.74,0.00031718,10]
[322145841,1712849432241,-378.95,0.00031718,10]
[322145842,1712849432250,-315.79,0.00031718,10]
[322145843,1712849432259,-62616.12942438,0.00031728,2]
[322145844,1712849432269,-19421.14934843,0.00031729,4]
[322145845,1712849432282,-5985.8999,0.00031729,4]
[322145846,1712849432294,-8689.50510177,0.00031729,4]
[322145847,1712849432306,-4930.25,0.00031729,4]
[322145848,1712849432317,-21748.0,0.00031729,4]
[322145849,1712849432345,-306.20467746,0.00031729,4]
[322145850,1712849432356,-346.53616094,0.00031729,4]
[322145851,1712849432367,-1421.18809713,0.00031729,4]
[322145852,1712849432430,-964.71320058,0.00031729,4]
[322145853,1712849432442,-550.0,0.00031729,4]
[322145854,1712849432463,-599.67525017,0.00031729,4]
[322145867,1712849438835,-8501.69999999,0.00031729,4]
[322145869,1712849438848,-577.21206771,0.00031729,4]
[322145871,1712849438863,-68884.54279999,0.00031729,4]
[322145872,1712849438875,-385957.9853826,0.00031729,4]
[322145873,1712849438884,-200.0,0.0003173,2]
[322145874,1712849438894,-1000.0,0.0003173,8]
[322145875,1712849438903,-500.0,0.0003173,2]
[322145876,1712849438913,-200.0,0.0003173,2]
[322145877,1712849438922,-332.74,0.00031817,2]
[322145878,1712849438931,-10000.0,0.0003187,2]
[322145879,1712849438940,-539.91,0.00031911,2]
[322145880,1712849438950,-1864.32467204,0.0003194,4]
[322145881,1712849438960,-6134.86059096,0.00031941,7]
[322145882,1712849438969,-4322.29381628,0.00031943,4]
[322145883,1712849438979,-1047.85825791,0.00031944,4]
[322145884,1712849438990,-332.1406229,0.00032,4]
[322145885,1712849439000,-1983.58008126,0.00032217,2]
[322145886,1712849439010,-2585.52001064,0.00032244,2]
[322145887,1712849439019,-907.18380046,0.00032499,4]
[322145888,1712849439028,-191.01064538,0.00032543,7]
[322145889,1712849439038,-1324.85,0.00032603,2]
[322145890,1712849439047,-944.99,0.00032603,2]
[322145891,1712849439056,-7500.0,0.000327,2]
[322145892,1712849439066,-152.77070344,0.00032759,2]
[322145893,1712849439075,-938.77349729,0.00032774,6]
[322145894,1712849439085,-164.79009812,0.00032776,2]
[322145895,1712849439095,-213.79909617,0.00032776,4]
[322145896,1712849439104,-205.79473245,0.00032776,4]
[322145897,1712849439113,-2610.31096457,0.00032776,4]
[322145898,1712849439122,-207.51996343,0.00032776,6]
[322145899,1712849439131,-4780.93074194,0.00032776,2]
[322145900,1712849439140,-533.0,0.000328,5]
[322145901,1712849439149,-41494.88316923,0.000328,2]
[322145902,1712849439161,-3135.47733768,0.000328,2]
[322145903,1712849439173,-6900.0,0.000328,2]
[322145935,1712849440571,-696.92,0.000328,2]
[322145936,1712849440636,-30000.0,0.000328,2]
[322145937,1712849440648,-167772.71949309,0.000328,2]
[322145938,1712849440658,-2585.52001064,0.00032858,2]
[322145939,1712849440668,-156.19761567,0.00032874,4]
[322145940,1712849440679,-14874.75407619,0.00032874,4]
[322145941,1712849440689,-226.22179272,0.00032874,4]
[322145942,1712849440700,-500.0,0.00032875,2]
[322145943,1712849440710,-253.50780129,0.00032875,2]
[322145944,1712849440720,-522.98833054,0.00032875,2]
[322145945,1712849440731,-444.19174776,0.00032875,2]
[322145946,1712849440740,-179.3221385,0.00032876,2]
[322145947,1712849440750,-17113.53052213,0.00032876,3]
[322145948,1712849440760,-500.0,0.00032876,2]
[322145949,1712849440769,-500.0,0.00032876,2]
[322145950,1712849440779,-500.0,0.00032876,2]
[322145951,1712849440791,-528.08774961,0.00032876,2]
[322145952,1712849440801,-500.0,0.00032876,2]
[322145953,1712849440811,-500.0,0.00032876,2]
[322145954,1712849440822,-500.0,0.00032876,2]
[322145955,1712849440832,-500.0,0.00032876,2]
[322145956,1712849440843,-500.0,0.00032876,2]
[322145957,1712849440853,-500.0,0.00032876,2]
[322145958,1712849440864,-500.0,0.00032876,2]
[322145959,1712849440874,-514.00566562,0.00032876,2]
[322145960,1712849440884,-500.0,0.00032876,2]
[322145961,1712849440896,-500.0,0.00032876,2]
[322145962,1712849440906,-500.0,0.00032876,2]
[322145963,1712849440918,-500.0,0.00032876,2]
[322145964,1712849440930,-500.0,0.00032876,2]
[322145965,1712849440940,-500.0,0.00032876,2]
[322145966,1712849440952,-500.0,0.00032876,2]
[322145967,1712849440964,-500.0,0.00032876,2]
[322145968,1712849440974,-500.0,0.00032876,2]
[322145969,1712849440984,-500.0,0.00032876,2]
[322145970,1712849440995,-500.0,0.00032876,2]
[322145971,1712849441005,-500.0,0.00032876,2]
[322145972,1712849441019,-500.0,0.00032876,2]
[322145973,1712849441030,-500.0,0.00032876,2]
[322145974,1712849441040,-504.54,0.00032876,2]
[322145975,1712849441051,-669.25,0.00032876,2]
[322145976,1712849441062,-500.0,0.00032876,2]
[322145977,1712849441073,-500.0,0.00032876,2]
[322145978,1712849441084,-526.05231169,0.00032876,2]
[322145979,1712849441095,-500.0,0.00032876,2]
[322145980,1712849441105,-500.0,0.00032876,2]
[322145981,1712849441115,-500.0,0.00032876,2]
[322145982,1712849441126,-500.0,0.00032876,2]
[322145983,1712849441136,-500.0,0.00032876,2]
[322145984,1712849441146,-500.0,0.00032876,2]
[322145985,1712849441156,-500.0,0.00032876,2]
[322145986,1712849441166,-500.0,0.00032876,2]
[322145987,1712849441175,-510.40588441,0.00032876,2]
[322145988,1712849441185,-500.0,0.00032876,2]
[322145989,1712849441195,-503.98647397,0.00032876,2]
[322145990,1712849441205,-500.0,0.00032876,2]
[322145991,1712849441215,-638.4,0.00032876,2]
[322145992,1712849441224,-512.0,0.00032876,2]
[322145993,1712849441234,-694.41,0.00032876,2]
[322145994,1712849441244,-500.0,0.00032876,2]
[322145995,1712849441254,-548.0,0.00032876,2]
[322145996,1712849441263,-805.46,0.00032876,2]
[322145997,1712849441277,-689.62,0.00032876,2]
[322145998,1712849441288,-500.0,0.00032876,2]
[322145999,1712849441298,-500.0,0.00032876,2]
[322146000,1712849441308,-614.59,0.00032876,2]
[322146001,1712849441318,-500.0,0.00032876,2]
[322146002,1712849441329,-500.0,0.00032876,2]
[322146003,1712849441340,-500.0,0.00032876,2]
[322146004,1712849441350,-500.0,0.00032876,2]
[322146005,1712849441360,-500.0,0.00032876,2]
[322146006,1712849441370,-500.0,0.00032876,2]
[322146007,1712849441381,-500.0,0.00032876,2]
[322146008,1712849441392,-500.0,0.00032876,2]
[322146009,1712849441402,-701.37,0.00032876,2]
[322146010,1712849441415,-500.0,0.00032876,2]
[322146011,1712849441428,-500.0,0.00032876,2]